[Event "Titled Tuesday Blitz February 21 Late 2023"]
[White "Kujawski, Adam"]
[Black "Lopez Perdomo, Juan David"]
[WhiteFideId "1100920"]
[BlackFideId "4405137"]
[WhiteElo "2173"]
[BlackElo "2029"]
[Result "1-0"]
[Round "06"]
[TimeControl "180+2"]
[Date "2023.02.21"]
[WhiteClock "0:00:10"]
[BlackClock "0:00:11"]

1. e4 {[%clk 0:02:59]}  e6 {[%clk 0:02:59]} 2. d4 {[%clk 0:02:56]}  d5 {[%clk 0:03:00]} 3. Nc3 {[%clk 0:02:56]}  Bb4 {[%clk 0:03:00]} 4. e5 {[%clk 0:02:56]}  c5 {[%clk 0:03:00]} 5. a3 {[%clk 0:02:57]}  Ba5 {[%clk 0:03:01]} 6. b4 {[%clk 0:02:56]}  cxd4 {[%clk 0:03:01]} 7. Nb5 {[%clk 0:02:55]}  Bc7 {[%clk 0:03:01]} 8. f4 {[%clk 0:02:55]}  Nh6 {[%clk 0:03:01]} 9. Nf3 {[%clk 0:02:54]}  a6 {[%clk 0:03:00]} 10. Nxc7+ {[%clk 0:02:53]}  Qxc7 {[%clk 0:03:01]} 11. Bd3 {[%clk 0:02:51]}  Ng4 {[%clk 0:02:56]} 12. O-O {[%clk 0:02:46]}  Ne3 {[%clk 0:02:57]} 13. Bxe3 {[%clk 0:02:45]}  dxe3 {[%clk 0:02:57]} 14. Qe2 {[%clk 0:02:39]}  Qb6 {[%clk 0:02:58]} 15. c3 {[%clk 0:02:19]}  Bd7 {[%clk 0:02:40]} 16. Nd4 {[%clk 0:02:07]}  Nc6 {[%clk 0:02:40]} 17. Qxe3 {[%clk 0:02:05]}  Nxd4 {[%clk 0:02:40]} 18. Qxd4 {[%clk 0:01:54]}  Qxd4+ {[%clk 0:02:40]} 19. cxd4 {[%clk 0:01:55]}  Bb5 {[%clk 0:02:40]} 20. Bxb5+ {[%clk 0:01:50]}  axb5 {[%clk 0:02:40]} 21. Rfc1 {[%clk 0:01:50]}  Kd7 {[%clk 0:02:40]} 22. Rc5 {[%clk 0:01:47]}  b6 {[%clk 0:02:24]} 23. Rxb5 {[%clk 0:01:13]}  Kc6 {[%clk 0:02:22]} 24. a4 {[%clk 0:01:12]}  Rxa4 {[%clk 0:02:09]} 25. Rxb6+ {[%clk 0:01:06]}  Kxb6 {[%clk 0:02:10]} 26. Rxa4 {[%clk 0:01:05]}  Kb5 {[%clk 0:02:11]} 27. Ra7 {[%clk 0:01:03]}  Rf8 {[%clk 0:02:09]} 28. Rc7 {[%clk 0:00:55]}  Kxb4 {[%clk 0:02:08]} 29. Kf2 {[%clk 0:00:46]}  Kb5 {[%clk 0:02:09]} 30. Ke3 {[%clk 0:00:41]}  Kb6 {[%clk 0:02:10]} 31. Re7 {[%clk 0:00:40]}  Kc6 {[%clk 0:02:09]} 32. g4 {[%clk 0:00:37]}  g6 {[%clk 0:02:08]} 33. f5 {[%clk 0:00:30]}  exf5 {[%clk 0:01:41]} 34. gxf5 {[%clk 0:00:28]}  Kb5 {[%clk 0:01:36]} 35. f6 {[%clk 0:00:24]}  Kc6 {[%clk 0:01:31]} 36. h4 {[%clk 0:00:23]}  h6 {[%clk 0:01:30]} 37. Ra7 {[%clk 0:00:22]}  Kb6 {[%clk 0:01:24]} 38. Rd7 {[%clk 0:00:21]}  Kc6 {[%clk 0:01:17]} 39. Rd6+ {[%clk 0:00:21]}  Kc7 {[%clk 0:01:18]} 40. Rxd5 {[%clk 0:00:21]}  Ra8 {[%clk 0:01:18]} 41. Rc5+ {[%clk 0:00:15]}  Kd7 {[%clk 0:01:18]} 42. Ke4 {[%clk 0:00:15]}  Ra1 {[%clk 0:01:16]} 43. Rb5 {[%clk 0:00:14]}  Rh1 {[%clk 0:01:12]} 44. Rb7+ {[%clk 0:00:14]}  Ke8 {[%clk 0:01:04]} 45. d5 {[%clk 0:00:13]}  Rxh4+ {[%clk 0:01:04]} 46. Kd3 {[%clk 0:00:13]}  Ra4 {[%clk 0:01:00]} 47. e6 {[%clk 0:00:13]}  Ra8 {[%clk 0:00:25]} 48. Rxf7 {[%clk 0:00:10]}  Ra3+ {[%clk 0:00:14]} 49. Kd4 {[%clk 0:00:10]}  Ra4+ {[%clk 0:00:15]} 50. Ke5 {[%clk 0:00:10]}  g5 {[%clk 0:00:10]} 51. Rh7 {[%clk 0:00:10]}  Kd8 {[%clk 0:00:11]} 52. Rh8+ {[%clk 0:00:10]}  Kc7 {[%clk 0:00:11]} 53. f7 {[%clk 0:00:10]}  Ra1 {[%clk 0:00:10]} 54. f8=Q {[%clk 0:00:10]}  Re1+ {[%clk 0:00:11]} 55. Kd4 {[%clk 0:00:10]}  Rxe6 {[%clk 0:00:12]} 56. dxe6 {[%clk 0:00:10]}  Kc6 {[%clk 0:00:11]} 57. e7 {[%clk 0:00:10]} 1-0


[Site "https://www.chess.com"]

[Event "Titled Tuesday Blitz February 21 Late 2023"]
[White "Davidson, Kevin"]
[Black "Sabar, Ethmane Daouda"]
[WhiteFideId "2056810"]
[BlackFideId "19600097"]
[WhiteElo "2154"]
[BlackElo "2040"]
[Result "1-0"]
[Round "06"]
[TimeControl "180+2"]
[Date "2023.02.21"]
[WhiteClock "0:00:04"]
[BlackClock "0:00:12"]

1. e4 {[%clk 0:03:00]}  e5 {[%clk 0:02:59]} 2. Nf3 {[%clk 0:03:00]}  Nc6 {[%clk 0:02:59]} 3. Bb5 {[%clk 0:03:00]}  f5 {[%clk 0:02:56]} 4. Nc3 {[%clk 0:03:00]}  fxe4 {[%clk 0:02:56]} 5. Nxe4 {[%clk 0:03:00]}  d5 {[%clk 0:02:56]} 6. Nxe5 {[%clk 0:02:59]}  dxe4 {[%clk 0:02:57]} 7. Nxc6 {[%clk 0:02:59]}  Qg5 {[%clk 0:02:57]} 8. Qe2 {[%clk 0:02:55]}  Nf6 {[%clk 0:02:55]} 9. f4 {[%clk 0:02:53]}  Qxf4 {[%clk 0:02:46]} 10. d4 {[%clk 0:02:36]}  Qd6 {[%clk 0:02:16]} 11. Nxa7+ {[%clk 0:02:35]}  c6 {[%clk 0:01:32]} 12. Nxc8 {[%clk 0:02:32]}  Qb4+ {[%clk 0:01:25]} 13. Bd2 {[%clk 0:01:54]}  Qxb5 {[%clk 0:01:04]} 14. c4 {[%clk 0:01:02]}  Qxb2 {[%clk 0:00:59]} 15. O-O {[%clk 0:01:01]}  Rxc8 {[%clk 0:00:55]} 16. Rab1 {[%clk 0:00:57]}  Qxd4+ {[%clk 0:00:49]} 17. Be3 {[%clk 0:00:57]}  Qe5 {[%clk 0:00:46]} 18. Rxb7 {[%clk 0:00:56]}  Bc5 {[%clk 0:00:43]} 19. Rxg7 {[%clk 0:00:41]}  Rf8 {[%clk 0:00:20]} 20. Kh1 {[%clk 0:00:36]}  Bxe3 {[%clk 0:00:18]} 21. Qxe3 {[%clk 0:00:37]}  Rc7 {[%clk 0:00:18]} 22. Rg5 {[%clk 0:00:31]}  Qe6 {[%clk 0:00:16]} 23. Qg3 {[%clk 0:00:27]}  Rcf7 {[%clk 0:00:16]} 24. Re5 {[%clk 0:00:19]}  Kd7 {[%clk 0:00:16]} 25. Rxe6 {[%clk 0:00:19]}  Kxe6 {[%clk 0:00:16]} 26. Qh3+ {[%clk 0:00:19]}  Ke7 {[%clk 0:00:16]} 27. Qa3+ {[%clk 0:00:19]}  Kd7 {[%clk 0:00:15]} 28. Qa7+ {[%clk 0:00:17]}  Ke6 {[%clk 0:00:15]} 29. Qc5 {[%clk 0:00:17]}  Nd7 {[%clk 0:00:13]} 30. Qxc6+ {[%clk 0:00:15]}  Ke7 {[%clk 0:00:13]} 31. Qxe4+ {[%clk 0:00:14]}  Kd8 {[%clk 0:00:14]} 32. Rxf7 {[%clk 0:00:12]}  Rxf7 {[%clk 0:00:15]} 33. h3 {[%clk 0:00:10]}  Re7 {[%clk 0:00:14]} 34. Qd4 {[%clk 0:00:09]}  Kc7 {[%clk 0:00:10]} 35. c5 {[%clk 0:00:09]}  Re6 {[%clk 0:00:09]} 36. a4 {[%clk 0:00:08]}  Rc6 {[%clk 0:00:09]} 37. Qf4+ {[%clk 0:00:08]}  Kb7 {[%clk 0:00:09]} 38. Qb4+ {[%clk 0:00:07]}  Kc7 {[%clk 0:00:10]} 39. Qf4+ {[%clk 0:00:07]}  Kb7 {[%clk 0:00:10]} 40. Qe4 {[%clk 0:00:08]}  Kc7 {[%clk 0:00:10]} 41. Qxh7 {[%clk 0:00:08]}  Rxc5 {[%clk 0:00:10]} 42. Qe4 {[%clk 0:00:07]}  Rc1+ {[%clk 0:00:10]} 43. Kh2 {[%clk 0:00:07]}  Rc5 {[%clk 0:00:11]} 44. Qf4+ {[%clk 0:00:06]}  Kc6 {[%clk 0:00:11]} 45. h4 {[%clk 0:00:06]}  Ne5 {[%clk 0:00:11]} 46. Qe4+ {[%clk 0:00:06]}  Kd6 {[%clk 0:00:10]} 47. h5 {[%clk 0:00:05]}  Rc4 {[%clk 0:00:11]} 48. Qh7 {[%clk 0:00:03]}  Rh4+ {[%clk 0:00:09]} 49. Kg3 {[%clk 0:00:02]}  Rg4+ {[%clk 0:00:10]} 50. Kf2 {[%clk 0:00:02]}  Rf4+ {[%clk 0:00:10]} 51. Ke2 {[%clk 0:00:02]}  Rxa4 {[%clk 0:00:08]} 52. h6 {[%clk 0:00:02]}  Rh4 {[%clk 0:00:08]} 53. Qg7 {[%clk 0:00:02]}  Re4+ {[%clk 0:00:05]} 54. Kd2 {[%clk 0:00:02]}  Rd4+ {[%clk 0:00:05]} 55. Kc3 {[%clk 0:00:02]}  Rc4+ {[%clk 0:00:05]} 56. Kb3 {[%clk 0:00:03]}  Rd4 {[%clk 0:00:04]} 57. h7 {[%clk 0:00:03]}  Rd3+ {[%clk 0:00:05]} 58. Kc2 {[%clk 0:00:02]}  Rd5 {[%clk 0:00:04]} 59. h8=Q {[%clk 0:00:02]}  Nc6 {[%clk 0:00:04]} 60. Kb2 {[%clk 0:00:02]}  Kc5 {[%clk 0:00:05]} 61. Qc3+ {[%clk 0:00:01]}  Kb5 {[%clk 0:00:05]} 62. Qhg7 {[%clk 0:00:02]}  Nb4 {[%clk 0:00:05]} 63. Qb3 {[%clk 0:00:02]}  Rd2+ {[%clk 0:00:05]} 64. Kc1 {[%clk 0:00:02]}  Rc2+ {[%clk 0:00:04]} 65. Qxc2 {[%clk 0:00:02]}  Nxc2 {[%clk 0:00:05]} 66. Kxc2 {[%clk 0:00:02]}  Kc4 {[%clk 0:00:06]} 67. g4 {[%clk 0:00:03]}  Kd5 {[%clk 0:00:07]} 68. Qf6 {[%clk 0:00:03]}  Ke4 {[%clk 0:00:08]} 69. g5 {[%clk 0:00:04]}  Ke3 {[%clk 0:00:08]} 70. g6 {[%clk 0:00:05]}  Ke2 {[%clk 0:00:08]} 71. g7 {[%clk 0:00:06]}  Ke1 {[%clk 0:00:09]} 72. Qe5+ {[%clk 0:00:04]}  Kf2 {[%clk 0:00:09]} 73. Qf4+ {[%clk 0:00:04]}  Ke1 {[%clk 0:00:09]} 74. Qg3+ {[%clk 0:00:04]}  Ke2 {[%clk 0:00:10]} 75. Kc3 {[%clk 0:00:03]}  Kf1 {[%clk 0:00:11]} 76. Qh2 {[%clk 0:00:04]}  Ke1 {[%clk 0:00:11]} 77. Kd3 {[%clk 0:00:04]}  Kf1 {[%clk 0:00:12]} 78. Ke3 {[%clk 0:00:04]} 1-0


[Site "https://www.chess.com"]

[Event "Titled Tuesday Blitz February 21 Late 2023"]
[White "Mitrovic, Darko R"]
[Black "Vaglio Munoz, Jaime"]
[WhiteFideId "927023"]
[BlackFideId "6500145"]
[WhiteElo "2220"]
[BlackElo "2174"]
[Result "1-0"]
[Round "06"]
[TimeControl "180+2"]
[Date "2023.02.21"]
[WhiteClock "0:00:07"]
[BlackClock "0:00:02"]

1. c4 {[%clk 0:02:59]}  c6 {[%clk 0:02:58]} 2. g3 {[%clk 0:02:56]}  b5 {[%clk 0:02:57]} 3. cxb5 {[%clk 0:02:55]}  cxb5 {[%clk 0:02:58]} 4. Bg2 {[%clk 0:02:55]}  Nc6 {[%clk 0:02:58]} 5. b4 {[%clk 0:02:55]}  Rb8 {[%clk 0:02:57]} 6. a3 {[%clk 0:02:53]}  Nf6 {[%clk 0:02:46]} 7. Nf3 {[%clk 0:02:51]}  e6 {[%clk 0:02:42]} 8. O-O {[%clk 0:02:51]}  d5 {[%clk 0:02:40]} 9. Bb2 {[%clk 0:02:50]}  Be7 {[%clk 0:02:39]} 10. d3 {[%clk 0:02:47]}  O-O {[%clk 0:02:39]} 11. Nbd2 {[%clk 0:02:47]}  a5 {[%clk 0:02:37]} 12. Ne5 {[%clk 0:02:21]}  Nxe5 {[%clk 0:02:35]} 13. Bxe5 {[%clk 0:02:21]}  Ra8 {[%clk 0:02:35]} 14. Nb3 {[%clk 0:01:48]}  axb4 {[%clk 0:02:30]} 15. axb4 {[%clk 0:01:47]}  Rxa1 {[%clk 0:02:30]} 16. Qxa1 {[%clk 0:01:45]}  Bxb4 {[%clk 0:02:30]} 17. Nd4 {[%clk 0:01:25]}  Bd7 {[%clk 0:01:59]} 18. Rb1 {[%clk 0:01:15]}  Bc5 {[%clk 0:01:46]} 19. Nxb5 {[%clk 0:01:04]}  Ne8 {[%clk 0:01:27]} 20. d4 {[%clk 0:00:35]}  Be7 {[%clk 0:01:26]} 21. h4 {[%clk 0:00:20]}  h6 {[%clk 0:01:25]} 22. Nc3 {[%clk 0:00:16]}  Bc6 {[%clk 0:01:21]} 23. Bf3 {[%clk 0:00:11]}  Bd6 {[%clk 0:01:15]} 24. Bxd6 {[%clk 0:00:09]}  Nxd6 {[%clk 0:01:15]} 25. Qa6 {[%clk 0:00:07]}  Qc8 {[%clk 0:01:11]} 26. Rb6 {[%clk 0:00:07]}  Qxa6 {[%clk 0:01:04]} 27. Rxa6 {[%clk 0:00:07]}  Rc8 {[%clk 0:01:02]} 28. e3 {[%clk 0:00:07]}  f5 {[%clk 0:01:00]} 29. Ne2 {[%clk 0:00:07]}  Kf7 {[%clk 0:00:52]} 30. h5 {[%clk 0:00:06]}  Kf6 {[%clk 0:00:51]} 31. Nf4 {[%clk 0:00:07]}  Ne4 {[%clk 0:00:45]} 32. Nd3 {[%clk 0:00:05]}  Bb5 {[%clk 0:00:41]} 33. Ra3 {[%clk 0:00:05]}  Bxd3 {[%clk 0:00:40]} 34. Rxd3 {[%clk 0:00:05]}  Ng5 {[%clk 0:00:39]} 35. Kg2 {[%clk 0:00:05]}  Rc2 {[%clk 0:00:38]} 36. Ra3 {[%clk 0:00:04]}  Nf7 {[%clk 0:00:34]} 37. Ra7 {[%clk 0:00:04]}  Rc6 {[%clk 0:00:29]} 38. Ra5 {[%clk 0:00:04]}  Ng5 {[%clk 0:00:27]} 39. Ra7 {[%clk 0:00:04]}  Ne4 {[%clk 0:00:20]} 40. Bxe4 {[%clk 0:00:03]}  fxe4 {[%clk 0:00:21]} 41. Rd7 {[%clk 0:00:03]}  Ra6 {[%clk 0:00:19]} 42. Rb7 {[%clk 0:00:03]}  e5 {[%clk 0:00:18]} 43. dxe5+ {[%clk 0:00:02]}  Kxe5 {[%clk 0:00:18]} 44. Rxg7 {[%clk 0:00:03]}  d4 {[%clk 0:00:18]} 45. exd4+ {[%clk 0:00:02]}  Kxd4 {[%clk 0:00:18]} 46. Rg6 {[%clk 0:00:02]}  Ra2 {[%clk 0:00:17]} 47. Rxh6 {[%clk 0:00:02]}  e3 {[%clk 0:00:17]} 48. Re6 {[%clk 0:00:01]}  Rxf2+ {[%clk 0:00:15]} 49. Kh3 {[%clk 0:00:01]}  Rf1 {[%clk 0:00:15]} 50. Kg4 {[%clk 0:00:01]}  Rh1 {[%clk 0:00:14]} 51. Kg5 {[%clk 0:00:01]}  Kd3 {[%clk 0:00:15]} 52. g4 {[%clk 0:00:01]}  e2 {[%clk 0:00:12]} 53. h6 {[%clk 0:00:01]}  Rf1 {[%clk 0:00:11]} 54. Kg6 {[%clk 0:00:02]}  Rh1 {[%clk 0:00:11]} 55. Rxe2 {[%clk 0:00:02]}  Rg1 {[%clk 0:00:11]} 56. g5 {[%clk 0:00:02]}  Kxe2 {[%clk 0:00:12]} 57. h7 {[%clk 0:00:03]}  Rh1 {[%clk 0:00:12]} 58. Kg7 {[%clk 0:00:03]}  Rg1 {[%clk 0:00:12]} 59. g6 {[%clk 0:00:03]}  Rh1 {[%clk 0:00:12]} 60. h8=Q {[%clk 0:00:04]}  Rg1 {[%clk 0:00:12]} 61. Qf8 {[%clk 0:00:04]}  Rg3 {[%clk 0:00:11]} 62. Qf6 {[%clk 0:00:04]}  Re3 {[%clk 0:00:10]} 63. Kf7 {[%clk 0:00:05]}  Rg3 {[%clk 0:00:10]} 64. g7 {[%clk 0:00:05]}  Rf3 {[%clk 0:00:09]} 65. g8=Q {[%clk 0:00:06]}  Rxf6+ {[%clk 0:00:09]} 66. Kxf6 {[%clk 0:00:06]}  Ke3 {[%clk 0:00:09]} 67. Qe6+ {[%clk 0:00:07]}  Kf4 {[%clk 0:00:09]} 68. Qf5+ {[%clk 0:00:07]}  Kg3 {[%clk 0:00:09]} 69. Qe4 {[%clk 0:00:07]}  Kf2 {[%clk 0:00:09]} 70. Qa4 {[%clk 0:00:07]}  Ke3 {[%clk 0:00:09]} 71. Ke5 {[%clk 0:00:08]}  Kd3 {[%clk 0:00:09]} 72. Qa3+ {[%clk 0:00:07]}  Kc4 {[%clk 0:00:09]} 73. Kd6 {[%clk 0:00:07]}  Kd4 {[%clk 0:00:06]} 74. Qb4+ {[%clk 0:00:07]}  Kd3 {[%clk 0:00:06]} 75. Kd5 {[%clk 0:00:07]}  Ke3 {[%clk 0:00:06]} 76. Qe4+ {[%clk 0:00:07]}  Kd2 {[%clk 0:00:05]} 77. Qf3 {[%clk 0:00:07]}  Kc2 {[%clk 0:00:04]} 78. Kc4 {[%clk 0:00:07]}  Kd2 {[%clk 0:00:04]} 79. Qf2+ {[%clk 0:00:07]}  Kd1 {[%clk 0:00:02]} 80. Kc3 {[%clk 0:00:07]}  Kc1 {[%clk 0:00:02]} 81. Qg1# {[%clk 0:00:07]} 1-0


[Site "https://www.chess.com"]

[Event "Titled Tuesday Blitz February 21 Late 2023"]
[White "Jenkins, Drake"]
[Black "Dias, Joao Batista"]
[WhiteFideId "2022397"]
[BlackFideId "2108240"]
[WhiteElo "2130"]
[BlackElo "1796"]
[Result "1/2-1/2"]
[Round "06"]
[TimeControl "180+2"]
[Date "2023.02.21"]
[WhiteClock "0:00:04"]
[BlackClock "0:00:17"]

1. Nf3 {[%clk 0:03:00]}  Nf6 {[%clk 0:02:59]} 2. c4 {[%clk 0:03:00]}  c5 {[%clk 0:02:57]} 3. d4 {[%clk 0:03:00]}  cxd4 {[%clk 0:02:56]} 4. Nxd4 {[%clk 0:03:01]}  Nc6 {[%clk 0:02:57]} 5. Nc3 {[%clk 0:03:01]}  g6 {[%clk 0:02:57]} 6. g3 {[%clk 0:03:01]}  Bg7 {[%clk 0:02:57]} 7. Nc2 {[%clk 0:03:01]}  O-O {[%clk 0:02:57]} 8. Bg2 {[%clk 0:03:02]}  a6 {[%clk 0:02:58]} 9. O-O {[%clk 0:03:02]}  d6 {[%clk 0:02:58]} 10. b3 {[%clk 0:03:02]}  Bg4 {[%clk 0:02:56]} 11. h3 {[%clk 0:03:00]}  Bd7 {[%clk 0:02:54]} 12. Bb2 {[%clk 0:02:59]}  Rc8 {[%clk 0:02:54]} 13. Qd2 {[%clk 0:02:58]}  Re8 {[%clk 0:02:52]} 14. Ne3 {[%clk 0:02:59]}  b6 {[%clk 0:02:47]} 15. Rfd1 {[%clk 0:02:54]}  Qc7 {[%clk 0:02:46]} 16. Ncd5 {[%clk 0:02:53]}  Nxd5 {[%clk 0:02:43]} 17. Nxd5 {[%clk 0:02:53]}  Qb8 {[%clk 0:02:43]} 18. Bxg7 {[%clk 0:02:50]}  Kxg7 {[%clk 0:02:44]} 19. Rac1 {[%clk 0:02:35]}  Kg8 {[%clk 0:02:44]} 20. Qh6 {[%clk 0:02:31]}  Be6 {[%clk 0:02:42]} 21. Nf4 {[%clk 0:02:27]}  Qc7 {[%clk 0:02:29]} 22. Nxe6 {[%clk 0:02:20]}  fxe6 {[%clk 0:02:28]} 23. h4 {[%clk 0:02:19]}  Rf8 {[%clk 0:02:17]} 24. h5 {[%clk 0:02:10]}  Rf6 {[%clk 0:02:16]} 25. Be4 {[%clk 0:01:54]}  Ne5 {[%clk 0:02:10]} 26. hxg6 {[%clk 0:01:48]}  Nxg6 {[%clk 0:01:55]} 27. Qg5 {[%clk 0:01:43]}  Rcf8 {[%clk 0:01:50]} 28. Rf1 {[%clk 0:01:36]}  Qc5 {[%clk 0:01:49]} 29. Qxc5 {[%clk 0:01:28]}  bxc5 {[%clk 0:01:49]} 30. Kg2 {[%clk 0:01:15]}  Kg7 {[%clk 0:01:47]} 31. f4 {[%clk 0:01:09]}  a5 {[%clk 0:01:39]} 32. e3 {[%clk 0:01:08]}  Rg8 {[%clk 0:01:30]} 33. Rh1 {[%clk 0:01:06]}  Rh8 {[%clk 0:01:28]} 34. Rh5 {[%clk 0:01:01]}  h6 {[%clk 0:01:26]} 35. Rch1 {[%clk 0:00:57]}  Nf8 {[%clk 0:01:25]} 36. g4 {[%clk 0:00:52]}  Ng6 {[%clk 0:01:10]} 37. Kg3 {[%clk 0:00:47]}  e5 {[%clk 0:00:43]} 38. Bxg6 {[%clk 0:00:41]}  Rxg6 {[%clk 0:00:42]} 39. fxe5 {[%clk 0:00:38]}  a4 {[%clk 0:00:41]} 40. Rd1 {[%clk 0:00:23]}  axb3 {[%clk 0:00:39]} 41. axb3 {[%clk 0:00:24]}  Rb8 {[%clk 0:00:39]} 42. Rd3 {[%clk 0:00:23]}  Ra8 {[%clk 0:00:40]} 43. exd6 {[%clk 0:00:23]}  exd6 {[%clk 0:00:39]} 44. Rhd5 {[%clk 0:00:23]}  Ra6 {[%clk 0:00:39]} 45. e4 {[%clk 0:00:21]}  Kf7 {[%clk 0:00:39]} 46. e5 {[%clk 0:00:20]}  dxe5 {[%clk 0:00:38]} 47. Rxc5 {[%clk 0:00:19]}  Rge6 {[%clk 0:00:33]} 48. Re3 {[%clk 0:00:18]}  Kf6 {[%clk 0:00:32]} 49. Rf3+ {[%clk 0:00:18]}  Kg6 {[%clk 0:00:32]} 50. b4 {[%clk 0:00:15]}  Ra1 {[%clk 0:00:30]} 51. b5 {[%clk 0:00:13]}  Rg1+ {[%clk 0:00:29]} 52. Kh4 {[%clk 0:00:09]}  Rh1+ {[%clk 0:00:26]} 53. Rh3 {[%clk 0:00:09]}  Rb1 {[%clk 0:00:22]} 54. Rc6 {[%clk 0:00:03]}  Rxc6 {[%clk 0:00:21]} 55. bxc6 {[%clk 0:00:04]}  Rb6 {[%clk 0:00:21]} 56. Re3 {[%clk 0:00:04]}  Kf6 {[%clk 0:00:19]} 57. Kh5 {[%clk 0:00:04]}  Rxc6 {[%clk 0:00:19]} 58. Kxh6 {[%clk 0:00:05]}  Rxc4 {[%clk 0:00:19]} 59. g5+ {[%clk 0:00:04]}  Kf5 {[%clk 0:00:20]} 60. g6 {[%clk 0:00:03]}  Rc6 {[%clk 0:00:18]} 61. Kh7 {[%clk 0:00:03]}  Rxg6 {[%clk 0:00:17]} 62. Rxe5+ {[%clk 0:00:03]}  Kxe5 {[%clk 0:00:17]} 63. Kxg6 {[%clk 0:00:04]} 1/2-1/2


[Site "https://www.chess.com"]

[Event "Titled Tuesday Blitz February 21 Late 2023"]
[White "Buscar, Michael"]
[Black "Vargas, Mauricio"]
[WhiteFideId "2603616"]
[BlackFideId "4404572"]
[WhiteElo "2041"]
[BlackElo "2035"]
[Result "1-0"]
[Round "06"]
[TimeControl "180+2"]
[Date "2023.02.21"]
[WhiteClock "0:01:11"]
[BlackClock "0:01:34"]

1. e4 {[%clk 0:02:50]}  c5 {[%clk 0:02:57]} 2. Nf3 {[%clk 0:02:50]}  d6 {[%clk 0:02:57]} 3. d4 {[%clk 0:02:50]}  cxd4 {[%clk 0:02:56]} 4. Nxd4 {[%clk 0:02:50]}  Nf6 {[%clk 0:02:57]} 5. Nc3 {[%clk 0:02:50]}  a6 {[%clk 0:02:57]} 6. Be2 {[%clk 0:02:42]}  g6 {[%clk 0:02:57]} 7. Be3 {[%clk 0:02:40]}  Bg7 {[%clk 0:02:56]} 8. f3 {[%clk 0:02:40]}  h6 {[%clk 0:02:56]} 9. Qd2 {[%clk 0:02:39]}  Nc6 {[%clk 0:02:45]} 10. O-O-O {[%clk 0:02:35]}  Bd7 {[%clk 0:02:45]} 11. Kb1 {[%clk 0:02:33]}  Rc8 {[%clk 0:02:38]} 12. g4 {[%clk 0:02:25]}  Ne5 {[%clk 0:02:20]} 13. h4 {[%clk 0:02:13]}  Nc4 {[%clk 0:02:04]} 14. Bxc4 {[%clk 0:02:13]}  Rxc4 {[%clk 0:02:04]} 15. g5 {[%clk 0:02:10]}  hxg5 {[%clk 0:01:58]} 16. hxg5 {[%clk 0:02:10]}  Nh5 {[%clk 0:01:57]} 17. Nd5 {[%clk 0:02:08]}  e6 {[%clk 0:01:42]} 18. Nc3 {[%clk 0:01:21]}  b5 {[%clk 0:01:36]} 19. Nce2 {[%clk 0:01:15]}  Qa5 {[%clk 0:01:34]} 20. Qxa5 {[%clk 0:01:11]} 1-0


[Site "https://www.chess.com"]

[Event "Titled Tuesday Blitz February 21 Late 2023"]
[White "Gamage, Wanshini Vidusama"]
[Black "Ruiz Aguilar, Pablo Alexander"]
[WhiteFideId "9953752"]
[BlackFideId "4401352"]
[WhiteElo "1089"]
[BlackElo "2161"]
[Result "0-1"]
[Round "06"]
[TimeControl "180+2"]
[Date "2023.02.21"]
[WhiteClock "0:00:01"]
[BlackClock "0:00:51"]

1. e4 {[%clk 0:03:00]}  c5 {[%clk 0:03:00]} 2. Nf3 {[%clk 0:02:57]}  e6 {[%clk 0:02:59]} 3. d4 {[%clk 0:02:57]}  cxd4 {[%clk 0:03:00]} 4. Nxd4 {[%clk 0:02:58]}  a6 {[%clk 0:03:00]} 5. c4 {[%clk 0:02:57]}  Nf6 {[%clk 0:02:59]} 6. Nc3 {[%clk 0:02:56]}  d6 {[%clk 0:03:00]} 7. Be3 {[%clk 0:02:54]}  Qc7 {[%clk 0:03:00]} 8. Be2 {[%clk 0:02:50]}  Nbd7 {[%clk 0:03:01]} 9. O-O {[%clk 0:02:50]}  b6 {[%clk 0:03:01]} 10. Qd2 {[%clk 0:02:50]}  Bb7 {[%clk 0:03:02]} 11. f3 {[%clk 0:02:48]}  Rc8 {[%clk 0:03:01]} 12. Rac1 {[%clk 0:02:40]}  Be7 {[%clk 0:03:01]} 13. Rfd1 {[%clk 0:02:36]}  O-O {[%clk 0:02:59]} 14. Rc2 {[%clk 0:02:34]}  Qb8 {[%clk 0:02:59]} 15. Rdc1 {[%clk 0:02:29]}  Bd8 {[%clk 0:02:52]} 16. Qe1 {[%clk 0:02:27]}  Bc7 {[%clk 0:02:51]} 17. Qf2 {[%clk 0:02:26]}  Rfe8 {[%clk 0:02:49]} 18. h3 {[%clk 0:02:25]}  d5 {[%clk 0:02:44]} 19. cxd5 {[%clk 0:02:23]}  exd5 {[%clk 0:02:44]} 20. Nxd5 {[%clk 0:02:20]}  Nxd5 {[%clk 0:02:43]} 21. exd5 {[%clk 0:02:04]}  Bg3 {[%clk 0:02:43]} 22. Qf1 {[%clk 0:02:01]}  Rxe3 {[%clk 0:02:39]} 23. Rxc8+ {[%clk 0:01:49]}  Bxc8 {[%clk 0:02:38]} 24. Nf5 {[%clk 0:01:49]}  Bf4 {[%clk 0:02:28]} 25. Rxc8+ {[%clk 0:01:21]}  Qxc8 {[%clk 0:02:19]} 26. Bxa6 {[%clk 0:01:21]}  Qc5 {[%clk 0:02:15]} 27. Nxe3 {[%clk 0:01:19]}  Bxe3+ {[%clk 0:02:12]} 28. Kh1 {[%clk 0:01:19]}  Qc1 {[%clk 0:02:11]} 29. Qxc1 {[%clk 0:01:15]}  Bxc1 {[%clk 0:02:10]} 30. b3 {[%clk 0:01:15]}  Ba3 {[%clk 0:02:07]} 31. Kg1 {[%clk 0:01:15]}  Kf8 {[%clk 0:02:05]} 32. Kf2 {[%clk 0:01:15]}  Ke7 {[%clk 0:02:06]} 33. Ke3 {[%clk 0:01:16]}  Kd6 {[%clk 0:02:06]} 34. Bc4 {[%clk 0:01:11]}  Ne5 {[%clk 0:01:59]} 35. Kd4 {[%clk 0:01:07]}  Bc5+ {[%clk 0:01:57]} 36. Kc3 {[%clk 0:01:07]}  Ng6 {[%clk 0:01:53]} 37. b4 {[%clk 0:01:06]}  Bf2 {[%clk 0:01:53]} 38. a4 {[%clk 0:00:59]}  Nf4 {[%clk 0:01:52]} 39. a5 {[%clk 0:00:43]}  bxa5 {[%clk 0:01:52]} 40. bxa5 {[%clk 0:00:44]}  Be1+ {[%clk 0:01:51]} 41. Kd4 {[%clk 0:00:43]}  Bxa5 {[%clk 0:01:50]} 42. Bf1 {[%clk 0:00:42]}  Nxd5 {[%clk 0:01:47]} 43. g4 {[%clk 0:00:36]}  f6 {[%clk 0:01:45]} 44. h4 {[%clk 0:00:36]}  Bb6+ {[%clk 0:01:43]} 45. Ke4 {[%clk 0:00:36]}  g6 {[%clk 0:01:42]} 46. h5 {[%clk 0:00:35]}  gxh5 {[%clk 0:01:39]} 47. gxh5 {[%clk 0:00:36]}  Ne7 {[%clk 0:01:38]} 48. Bd3 {[%clk 0:00:32]}  h6 {[%clk 0:01:37]} 49. Kf4 {[%clk 0:00:30]}  Ba5 {[%clk 0:01:35]} 50. Be4 {[%clk 0:00:28]}  Bd2+ {[%clk 0:01:34]} 51. Kg4 {[%clk 0:00:28]}  Ke5 {[%clk 0:01:33]} 52. Bb7 {[%clk 0:00:25]}  f5+ {[%clk 0:01:30]} 53. Kg3 {[%clk 0:00:24]}  Bf4+ {[%clk 0:01:29]} 54. Kg2 {[%clk 0:00:23]}  Kf6 {[%clk 0:01:29]} 55. Ba6 {[%clk 0:00:22]}  Kg5 {[%clk 0:01:30]} 56. Bd3 {[%clk 0:00:20]}  Kxh5 {[%clk 0:01:29]} 57. Kh3 {[%clk 0:00:20]}  Kg5 {[%clk 0:01:29]} 58. Kg2 {[%clk 0:00:21]}  h5 {[%clk 0:01:28]} 59. Kh3 {[%clk 0:00:21]}  Be5 {[%clk 0:01:25]} 60. Kg2 {[%clk 0:00:20]}  Ng6 {[%clk 0:01:25]} 61. Bc2 {[%clk 0:00:17]}  Nf4+ {[%clk 0:01:23]} 62. Kf2 {[%clk 0:00:18]}  Bd4+ {[%clk 0:01:22]} 63. Kg3 {[%clk 0:00:18]}  Ne2+ {[%clk 0:01:22]} 64. Kg2 {[%clk 0:00:18]}  Kf4 {[%clk 0:01:21]} 65. Kh3 {[%clk 0:00:17]}  Bf6 {[%clk 0:01:15]} 66. Kg2 {[%clk 0:00:15]}  h4 {[%clk 0:01:13]} 67. Kf2 {[%clk 0:00:16]}  Nd4 {[%clk 0:01:13]} 68. Bd1 {[%clk 0:00:16]}  h3 {[%clk 0:01:12]} 69. Kg1 {[%clk 0:00:11]}  Kg3 {[%clk 0:01:12]} 70. Kh1 {[%clk 0:00:10]}  f4 {[%clk 0:01:10]} 71. Ba4 {[%clk 0:00:09]}  Nxf3 {[%clk 0:01:10]} 72. Bd7 {[%clk 0:00:07]}  Ng5 {[%clk 0:01:08]} 73. Bf5 {[%clk 0:00:06]}  f3 {[%clk 0:01:07]} 74. Bd3 {[%clk 0:00:06]}  Ne6 {[%clk 0:01:04]} 75. Bf1 {[%clk 0:00:06]}  Nf4 {[%clk 0:01:03]} 76. Bc4 {[%clk 0:00:06]}  Ne2 {[%clk 0:00:52]} 77. Bd3 {[%clk 0:00:03]}  Nc3 {[%clk 0:00:50]} 78. Bc4 {[%clk 0:00:03]}  Nd1 {[%clk 0:00:50]} 79. Be6 {[%clk 0:00:01]}  Nf2+ {[%clk 0:00:50]} 80. Kg1 {[%clk 0:00:01]}  h2+ {[%clk 0:00:50]} 81. Kf1 {[%clk 0:00:01]}  h1=Q# {[%clk 0:00:51]} 0-1


[Site "https://www.chess.com"]